Cogmind - Beta 13 @@@ ROGUE MODE // 2024.04.16 @ 23:37:42 Player: arcadio rl Result: Destroyed by C-35 Carver with Carbide Saw Performance ------------- Evolutions (6) 3000 Regions Visited (10) 2000 Robots Destroyed (94) 470 Value Destroyed (3015) 3015 Prototype IDs (12) 240 Alien Tech Used (0) 0 Bonus (1968) 1968 TOTAL SCORE: 10693 Bonus ------- High Alert Combat Kills 542 Follower Combat Kills 1091 Entered DSFs 500 Friendly Fire -165 Cogmind --------- Core Integrity 0/1150 Matter 275/300 Energy 75/100 System Corruption 0% Temperature Cool (0) Movement Core (50) Location -4/DSF Parts ------- > --- POWER (2) -------- (None) > --- PROPULSION (5) --- (None) > --- UTILITY (9) ------ (None) > --- WEAPON (3) ------- (None) > --- INVENTORY (5) ---- Armored Leg Hardened Medium Armor Plating High-powered Field Laser Peak State ------------ > --- POWER ------------ Micro Nuclear Core Micro Fission Core > --- PROPULSION ------- Gravmag Array > --- UTILITY ---------- Advanced Melee Analysis Suite Improved Thermal Shield EM Disruption Field Force Field Force Field Drone Bay > --- WEAPON ----------- Greatsword > --- INVENTORY -------- Armored Leg Hardened Medium Armor Plating High-powered Field Laser Greatsword [Rating: 61] Favorites ----------- Power Light Ion Engine Engine Light Ion Engine Power Core Light Nuclear Core Propulsion Armored Treads Treads Armored Treads Wheel Subdweller Monowheel Hover Unit Hover Unit Flight Unit Flight Unit Utility Improved Signal Interpreter Device Bomb Drone Bay Storage Large Storage Unit Processor Improved Signal Interpreter Hackware Hacking Suite Protection Hardened Medium Armor Plating Weapon Battle Cannon Energy Gun High-powered Field Laser Ballistic Gun Light Assault Rifle Ballistic Cannon Battle Cannon Launcher Advanced EMP Blaster Special Weapon Mining Laser Slashing Weapon Greatsword Special Melee Weapon Datajack Build | -11 -10 -10 -10 -8 -8 -7 -6 -5 -4 -4 ------- Run | Yrd Mat Min Sub Mat Sto Fac Fac Fac Fac DSF Slots Evolved 12 | . . . . 4 . 2 2 2 2 . Power 1 | . . . . . . . 1 . . . Propulsion 3 | . . . . 2 . . . 1 . . Utility 7 | . . . . 2 . 2 1 . 2 . Weapon 1 | . . . . . . . . 1 . . Parts Attached 110 | 6 9 6 6 16 4 30 20 9 . 4 Power 18 | 1 1 1 . 2 1 5 5 2 . . Engine 9 | 1 1 1 . 2 . 3 1 . . . Core 9 | . . . . . 1 2 4 2 . . Reactor . | . . . . . . . . . . . Propulsion 34 | 2 4 2 2 7 1 10 3 . . 3 Treads 18 | . . . . 5 1 10 2 . . . Leg . | . . . . . . . . . . . Wheel 5 | 2 . . 2 1 . . . . . . Hover 8 | . 4 1 . . . . 1 . . 2 Flight 3 | . . 1 . 1 . . . . . 1 Utility 33 | 1 3 2 2 3 . 8 7 6 . 1 Device 17 | . 1 1 2 1 . 3 4 4 . 1 Storage 3 | 1 1 . . 1 . . . . . . Processor 6 | . 1 . . 1 . 1 2 1 . . Hackware 3 | . . 1 . . . 1 . 1 . . Protection 4 | . . . . . . 3 1 . . . Artifact . | . . . . . . . . . . . Weapon 25 | 2 1 1 2 4 2 7 5 1 . . Energy Gun 7 | . . . . . 1 3 3 . . . Energy Cannon . | . . . . . . . . . . . Ballistic Gun 4 | 2 1 . . 1 . . . . . . Ballistic Cannon 4 | . . . 1 1 . 2 . . . . Launcher 3 | . . . . 1 1 1 . . . . Special Weapon 1 | . . 1 . . . . . . . . Impact Weapon . | . . . . . . . . . . . Slashing Weapon 3 | . . . . . . . 2 1 . . Piercing Weapon . | . . . . . . . . . . . Special Melee Weapon 3 | . . . 1 1 . 1 . . . . Unidentified Prototypes 4 | . . 1 1 . 1 1 . . . . Parts Lost 45 | . 3 5 1 . . 17 5 12 . 2 Power 5 | . 1 1 . . . 2 . 1 . . Propulsion 15 | . 1 2 1 . . 8 1 1 . 1 Utility 16 | . . . . . . 4 3 8 . 1 Weapon 9 | . 1 2 . . . 3 1 2 . . Highest Loss Streak 8 | . 3 5 1 . . 3 5 8 . 2 To Critical Strikes 2 | . . . 1 . . 1 . . . . Average Slot Usage (%) 79 | . 81 74 72 89 88 91 52 46 . 1 Engine 6 | . 13 13 14 9 2 3 4 . . . Core 2 | . . . . . 6 3 1 5 . . Treads 17 | . . . . 33 35 23 10 . . . Wheel 1 | . 7 . 9 1 . . . . . . Hover 3 | . 19 14 4 . . . . 4 . . Flight 2 | . . 12 11 . . . . . . . Device 14 | . . 13 16 19 9 17 9 19 . 1 Storage 4 | . 6 . . 3 9 7 2 . . . Processor 6 | . 6 1 . 3 9 10 10 7 . . Hackware 1 | . . 2 . . . 3 . . . . Protection 1 | . . . . . . 2 2 . . . Energy Gun 3 | . . . . . 1 9 2 . . . Ballistic Gun 4 | . 28 14 5 2 6 . . . . . Ballistic Cannon 4 | . . . 3 7 9 4 2 . . . Special Melee Weapon 2 | . . . 5 7 . . . . . . Naked Turns 88 | . . . . . . . 21 6 18 43 Heaviest Build 63 | 12 32 12 12 39 42 49 63 39 . 3 Greatest Support 100 | 26 26 12 40 80 80 82 100 20 3 11 Greatest Overweight (x) 10 | 1 10 1 1 . . 2 3 1 . . Average Overweight (x) . | . . . . . . . . . . . Largest Inventory Capacity 15 | 8 15 5 5 15 15 15 15 5 5 5 Average Capacity 10 | 7 7 5 5 8 15 15 9 5 5 5 Most Carried 15 | 6 10 5 5 15 15 15 15 5 3 3 Average Carried 9 | 3 5 4 4 7 14 13 8 4 3 3 Final Capacity 15 | 8 5 5 5 15 15 15 5 5 5 5 Final Carried 15 | 6 4 5 5 15 14 15 4 3 3 3 Class Distribution -------------------- 63% | Mutant 18% | Scavenger-Mutant 11% | Commander-Mutant 7% | Gladiator Dominant Class ---------------- Mutant | -10/Materials Mutant | -10/Mines Mutant | -10/Subcaves Mutant | -8/Materials Commander-Mutant | -8/Storage Mutant | -7/Factory Mutant | -6/Factory Gladiator | -5/Factory Mutant | -4/Factory Mutant | -4/DSF Resources | -11 -10 -10 -10 -8 -8 -7 -6 -5 -4 -4 ----------- Run | Yrd Mat Min Sub Mat Sto Fac Fac Fac Fac DSF Matter Collected 2226 | 199 207 75 217 270 226 581 110 341 . . Remotely . | . . . . . . . . . . . Salvage Created 3302 | . 365 34 43 203 323 1646 182 506 . . Parts 176 | . 33 2 1 22 14 79 5 20 . . Haulers Intercepted 9 | . 2 . . 3 1 3 . . . . Recyclers Shooed 1 | . 1 . . . . . . . . . Parts Field Recycled . | . . . . . . . . . . . Retrieved Matter . | . . . . . . . . . . . Parts Self-Destructed 6 | . . . 6 . . . . . . . Prevented . | . . . . . . . . . . . Kills | -11 -10 -10 -10 -8 -8 -7 -6 -5 -4 -4 ------- Run | Yrd Mat Min Sub Mat Sto Fac Fac Fac Fac DSF Combat Hostiles Destroyed 71 | . 10 3 1 6 6 34 3 8 . . Melee 8 | . . . . . . . . 8 . . Guns 36 | . 10 2 1 . . 21 2 . . . Cannons 17 | . . 1 . 2 5 8 1 . . . AOE 7 | . . . . 4 1 2 . . . . Classes Destroyed 15 | . 4 . 1 2 1 7 . . . . Worker 2 | . . . . 1 . 1 . . . . Builder 2 | . . . . . . 2 . . . . Hauler 9 | . 2 . . 3 1 3 . . . . Recycler 4 | . . . . . . 3 . 1 . . Mechanic 2 | . . . . . . 2 . . . . Watcher 3 | . 1 . . . . 1 1 . . . Swarmer 27 | . 6 3 . 4 . 11 . 3 . . Grunt 25 | . 4 . . 1 4 12 2 2 . . Brawler 2 | . . . . . 1 . . 1 . . Duelist 1 | . . . . . . 1 . . . . Protector 1 | . . . . . . 1 . . . . Sentry 6 | . . . . 1 1 4 . . . . Hunter 1 | . . . . . . 1 . . . . Programmer 8 | . . . . . . 5 1 2 . . Subdweller 1 | . . . 1 . . . . . . . Best Kill Streak 13 | . 6 3 1 5 3 13 2 5 . . Combat Bots Only 8 | . 6 3 1 4 3 8 1 5 . . Max Kills in Single Turn 5 | . 1 1 1 4 1 5 2 1 . . Gunslinging . | . . . . . . . . . . . Exploded 3 | . . . . 3 1 1 . . . . Melee 1 | . . . . . . . . 1 . . Uniques/NPCs Destroyed . | . . . . . . . . . . . Combat | -11 -10 -10 -10 -8 -8 -7 -6 -5 -4 -4 -------- Run | Yrd Mat Min Sub Mat Sto Fac Fac Fac Fac DSF Hostile Shots Fired 961 | . 57 57 4 36 10 482 101 119 . 95 Missed 310 | . 20 13 1 7 2 151 25 50 . 41 Damage Taken 9841 | . 409 350 59 416 193 4234 1628 1244 . 1308 Core 2997 | . 100 88 41 27 29 535 577 430 . 1170 Absorbed by Shields 125 | . . . . . . . . 125 . . Redirected to Shielding 107 | . . . . . . 107 . . . . Ignored by Resistances 126 | . . . . . . . . 126 . . Regen/Repaired (Parts) 463 | . . . . . 114 349 . . . . Core Remaining (%) 51 | 100 . . 8 . 89 23 32 57 . . Volleys Fired 254 | . 42 17 6 27 18 130 14 . . . Largest 2 | . 2 2 1 2 2 2 2 . . . Hottest 150 | . 40 120 20 56 75 150 140 . . . Shots Fired 460 | . 84 25 6 29 35 253 28 . . . Gun 335 | . 84 21 6 2 16 189 17 . . . Cannon 118 | . . . . 25 18 64 11 . . . Launcher 3 | . . . . 2 1 . . . . . Special 4 | . . 4 . . . . . . . . Kinetic 247 | . 84 21 6 27 34 64 11 . . . Thermal 210 | . . 4 . . . 189 17 . . . Explosive 2 | . . . . 2 . . . . . . Electromagnetic 1 | . . . . . 1 . . . . . Robot Hit Streak 18 | . 9 11 13 10 10 18 7 . . . Robot Miss Streak 6 | . 5 6 . 3 3 3 1 . . . Penetration Max . | . . . . . . . . . . . Secondary Targets 4 | . 1 . . . . 2 1 . . . Max Gunslinging Chain 1 | . 1 . . . . 1 1 . . . Shots Hit Robots 323 | . 47 13 6 19 22 182 16 18 . . Core Hits 153 | . 18 4 1 11 9 93 7 10 . . Critical Kills . | . . . . . . . . . . . Critical Parts Destroyed . | . . . . . . . . . . . Critical Strikes 16 | . . . . 2 2 8 1 3 . . Burn 7 | . . . . . . 6 1 . . . Blast 6 | . . . . 2 2 2 . . . . Sever 3 | . . . . . . . . 3 . . Melee Attacks 33 | . . . . 5 . 2 1 25 . . Impact . | . . . . . . . . . . . Slashing 26 | . . . . . . . 1 25 . . Piercing . | . . . . . . . . . . . Sneak Attacks 6 | . . . . 3 . 2 . 1 . . Combat Hostiles . | . . . . . . . . . . . Follow-up Attacks . | . . . . . . . . . . . Damage Inflicted 8705 | . 710 138 47 617 568 5226 425 969 . 5 Guns 4558 | . 622 112 47 . 160 3325 292 . . . Cannons 1747 | . . . . 410 316 888 133 . . . Explosions 1400 | . 88 . . 207 92 1013 . . . . Melee 969 | . . . . . . . . 969 . . Ramming 5 | . . . . . . . . . . 5 Kinetic 2688 | . 622 112 47 410 476 888 133 . . . Thermal 4039 | . 88 26 . . . 3633 292 . . . Explosive 912 | . . . . 207 . 705 . . . . Electromagnetic 92 | . . . . . 92 . . . . . Impact . | . . . . . . . . . . . Slashing 969 | . . . . . . . . 969 . . Piercing . | . . . . . . . . . . . Highest Corruption 7 | . . . . . 1 4 7 3 . . Average Corruption 3 | . . . . . 1 2 6 2 . . Corruption Purged . | . . . . . . . . . . . Corruption Blocked . | . . . . . . . . . . . Effects 48 | . . . . . . 32 14 2 . . Message Errors 8 | . . . . . . 5 3 . . . Matter Fused 20 | . . . . . . 15 5 . . . Heat Flow Errors 9 | . . . . . . 5 4 . . . Energy Discharges 5 | . . . . . . 3 1 1 . . Parts Rejected 1 | . . . . . . . 1 . . . Data Loss (minor) 1 | . . . . . . 1 . . . . Alerts 1 | . . . . . . . . 1 . . Weapon Failures 3 | . . . . . . 3 . . . . Overload Shots . | . . . . . . . . . . . Overflow Damage 423 | . 87 . . 20 . 281 . 35 . . Projectiles 37 | . . . . . . 37 . . . . Explosions 351 | . 87 . . 20 . 244 . . . . Melee 35 | . . . . . . . . 35 . . Knockbacks 11 | . . . . . 1 9 1 . . . Impact . | . . . . . . . . . . . Kinetic 11 | . . . . . 1 9 1 . . . Secondary . | . . . . . . . . . . . Self-Inflicted Damage 173 | . 91 . . . . 80 . . . 2 Shots 3 | . 1 . . . . 2 . . . . Rammed 1 | . . . . . . . . . . 1 Targets Rammed 1 | . . . . . . . . . . 1 Kicked . | . . . . . . . . . . . Crushed . | . . . . . . . . . . . Highest Temperature 453 | . 20 138 . 11 12 453 427 . . . Average Temperature 93 | . 8 54 . 5 5 97 112 . . . Received Heat Transfer 2256 | . 42 . 18 198 99 993 542 214 . 150 Effects 8 | . . . . . . 5 3 . . . Shutdowns 2 | . . . . . . 1 1 . . . Energy Bleed 1 | . . . . . . 1 . . . . Interference 1 | . . . . . . 1 . . . . Matter Decay 1 | . . . . . . . 1 . . . Short Circuit 2 | . . . . . . 1 1 . . . Damage (minor) 1 | . . . . . . 1 . . . . Siege Activations . | . . . . . . . . . . . Robots Corrupted . | . . . . . . . . . . . Combat Hostiles . | . . . . . . . . . . . Parts Fried . | . . . . . . . . . . . Impact Corruptions . | . . . . . . . . . . . Robots Melted 3 | . . . . . . 3 . . . . Combat Hostiles 3 | . . . . . . 3 . . . . Parts Melted 17 | . . . . . . 12 3 2 . . Heat Transferred 6966 | . 50 50 . . . 6348 518 . . . Parts Sabotaged . | . . . . . . . . . . . Parts Stolen . | . . . . . . . . . . . Parts Stripped . | . . . . . . . . . . . Power Chain Reactions . | . . . . . . . . . . . Alert | -11 -10 -10 -10 -8 -8 -7 -6 -5 -4 -4 ------- Run | Yrd Mat Min Sub Mat Sto Fac Fac Fac Fac DSF Peak Influence 907 | . 217 70 . 264 700 907 405 280 35 24 Initial 399 | . . 58 . . 101 318 399 . 30 24 Average 360 | . 92 35 . 158 415 679 237 73 34 17 Maximum Alert Level 3 | . 1 . . 1 3 3 2 1 . . Low Security (%) 43 | 100 98 100 . 70 20 . 46 91 100 100 Level 1 17 | . 1 . . 29 15 9 52 8 . . Level 2 20 | . . . . . 59 39 . . . . Level 3 19 | . . . . . 5 50 . . . . Level 4 . | . . . . . . . . . . . Level 5 . | . . . . . . . . . . . High Security . | . . . . . . . . . . . Max Security . | . . . . . . . . . . . Squads Dispatched 23 | . 2 . . 1 3 9 3 4 . 1 Investigation 4 | . 1 . . 1 . 1 . 1 . . Extermination 7 | . . . . . . 6 . 1 . . Reinforcement 9 | . 1 . . . 1 1 3 2 . 1 Assault 2 | . . . . . 1 1 . . . . Garrison 1 | . . . . . 1 . . . . . Intercept . | . . . . . . . . . . . Searches Triggered . | . . . . . . . . . . . Construction Impeded . | . . . . . . . . . . . Haulers Reinforced 1 | . . . . . . 1 . . . . Active Scanning Responses . | . . . . . . . . . . . Cargo Convoy Interrupts . | . . . . . . . . . . . Stealth | -11 -10 -10 -10 -8 -8 -7 -6 -5 -4 -4 --------- Run | Yrd Mat Min Sub Mat Sto Fac Fac Fac Fac DSF Distress Signals 11 | . 2 . . 3 2 2 2 . . . Communications Jammed . | . . . . . . . . . . . Distress Signals . | . . . . . . . . . . . Times Spotted 194 | . 21 3 14 31 19 57 20 22 . 7 Peak Tracking Total 8 | . 4 3 4 5 4 7 8 4 . 7 Tactical Retreats 22 | . 3 . 1 1 . 5 5 7 . . Traps | -11 -10 -10 -10 -8 -8 -7 -6 -5 -4 -4 ------- Run | Yrd Mat Min Sub Mat Sto Fac Fac Fac Fac DSF Traps Triggered 6 | . . . . 1 1 . 2 1 . 1 Indirectly . | . . . . . . . . . . . Trap Hack Attempts 49 | . . . . 23 . 26 . . . . Triggered 1 | . . . . 1 . . . . . . Disarmed . | . . . . . . . . . . . Reprogrammed 6 | . . . . 2 . 4 . . . . Reused 3 | . . . . . . 3 . . . . Traps Extracted . | . . . . . . . . . . . Installed . | . . . . . . . . . . . Triggered 3 | . . . . . . 3 . . . . Machines | -11 -10 -10 -10 -8 -8 -7 -6 -5 -4 -4 ---------- Run | Yrd Mat Min Sub Mat Sto Fac Fac Fac Fac DSF Machines Disabled 8 | . 1 . . . 2 5 . . . . Max in Single Turn 3 | . 1 . . . 1 3 . . . . Garrison Access 3 | . . . . 1 1 . 1 . . . Machines Repaired . | . . . . . . . . . . . Machines Dismantled . | . . . . . . . . . . . Machines Sabotaged . | . . . . . . . . . . . Overloaded Fab Kills . | . . . . . . . . . . . Hacking | -11 -10 -10 -10 -8 -8 -7 -6 -5 -4 -4 --------- Run | Yrd Mat Min Sub Mat Sto Fac Fac Fac Fac DSF Machines Accessed 41 | . 4 1 . 9 7 11 5 3 1 . Terminals 30 | . 4 . . 8 6 5 4 2 1 . Fabricators 2 | . . . . . . 2 . . . . Repair Stations 4 | . . . . . 1 3 . . . . Recycling Units . | . . . . . . . . . . . Scanalyzers 2 | . . . . . . 1 . 1 . . Garrison Access 2 | . . . . 1 . . 1 . . . Total Hacks 114 | . 13 1 . 27 19 34 14 3 3 . Successful 56 | . 8 1 . 14 9 16 7 . 1 . Failed 57 | . 4 . . 13 10 18 7 3 2 . Catastrophic 11 | . . . . 3 1 3 2 2 . . Database Lockouts 1 | . 1 . . . . . . . . . Manual 30 | . 10 . . 11 1 2 6 . . . Terminals 82 | . 13 . . 24 15 15 10 2 3 . Fabricators 3 | . . . . . . 3 . . . . Repair Stations 16 | . . . . . 4 12 . . . . Recycling Units . | . . . . . . . . . . . Scanalyzers 5 | . . . . . . 4 . 1 . . Garrison Access 7 | . . . . 3 . . 4 . . . Terminal Hacks 31 | . 5 1 . 11 4 4 5 . 1 . Robot Schematic 1 | . . . . . 1 . . . . . Robot Analysis 5 | . 2 . . 2 . 1 . . . . Prototype ID Bank 3 | . . . . 2 . . 1 . . . Open Door 3 | . . 1 . . 2 . . . . . Open DSF 2 | . . . . . . . 1 . 1 . Level Access Points 1 | . . . . . . 1 . . . . Branch Access Points 1 | . . . . . 1 . . . . . Alert Level 4 | . 1 . . 2 . 1 . . . . Unreport Threat 5 | . 1 . . . . 1 3 . . . Security Status 1 | . . . . 1 . . . . . . Patrol Status 1 | . . . . 1 . . . . . . Hauler Manifests 2 | . 1 . . 1 . . . . . . Zone Layout 2 | . . . . 2 . . . . . . Fabricator Hacks 1 | . . . . . . 1 . . . . Load Schematic 1 | . . . . . . 1 . . . . Repair Station Hacks 12 | . . . . . 4 8 . . . . Scan Component 6 | . . . . . 2 4 . . . . Repair 5 | . . . . . 2 3 . . . . Refit 1 | . . . . . . 1 . . . . Recycling Unit Hacks . | . . . . . . . . . . . Scanalyzer 3 | . . . . . . 3 . . . . Insert Component 2 | . . . . . . 2 . . . . Analyze 1 | . . . . . . 1 . . . . Garrison Access Hacks 2 | . . . . 1 . . 1 . . . Seal Access 2 | . . . . 1 . . 1 . . . Unauthorized Hacks 7 | . 3 . . 2 1 . 1 . . . Terminals 7 | . 3 . . 2 1 . 1 . . . Assimilate 1 | . 1 . . . . . . . . . Botnet 6 | . 2 . . 2 1 . 1 . . . Fabricators . | . . . . . . . . . . . Repair Stations . | . . . . . . . . . . . Recycling Units . | . . . . . . . . . . . Scanalyzers . | . . . . . . . . . . . Garrison Access . | . . . . . . . . . . . Data Cores Recovered . | . . . . . . . . . . . Used . | . . . . . . . . . . . Hacking Detections 36 | . 4 . . 9 4 11 4 3 1 . Full Trace Events 1 | . . . . . . 1 . . . . Feedback Events . | . . . . . . . . . . . Feedback Blocked . | . . . . . . . . . . . Robot Schematics Acquired 1 | . . . . . 1 . . . . . Robots Built . | . . . . . . . . . . . Authchips . | . . . . . . . . . . . Time . | . . . . . . . . . . . Total Robot Build Rating . | . . . . . . . . . . . Part Schematics Acquired 1 | . . . . . . 1 . . . . Parts Built . | . . . . . . . . . . . Authchips . | . . . . . . . . . . . Time . | . . . . . . . . . . . Total Part Build Rating . | . . . . . . . . . . . Parts Repaired 5 | . . . . . 2 3 . . . . Time 193 | . . . . . 98 95 . . . . Parts Recycled . | . . . . . . . . . . . Recycled Matter . | . . . . . . . . . . . Retrieved Matter . | . . . . . . . . . . . Retrieved Components . | . . . . . . . . . . . Parts Scanalyzed 1 | . . . . . . 1 . . . . Part Schematics Acquired 1 | . . . . . . 1 . . . . Parts Damaged . | . . . . . . . . . . . Bothacking | -11 -10 -10 -10 -8 -8 -7 -6 -5 -4 -4 ------------ Run | Yrd Mat Min Sub Mat Sto Fac Fac Fac Fac DSF Used RIF Installer . | . . . . . . . . . . . Robots Hacked 4 | . . . . 2 . 2 . . . . Non-combat 4 | . . . . 2 . 2 . . . . Combat . | . . . . . . . . . . . Robot Hacks Applied 4 | . . . . 2 . 2 . . . . no_distress 2 | . . . . 2 . . . . . . find_chute 1 | . . . . . . 1 . . . . find_recycling 1 | . . . . . . 1 . . . . Relay Couplers Released 5 | . . . . . 2 . 3 . . . Machine Destruction 2 | . . . . . 2 . . . . . Programmers 3 | . . . . . . . 3 . . . Fabnet Peak Effective % . | . . . . . . . . . . . Robots Rewired . | . . . . . . . . . . . Allies Hacked . | . . . . . . . . . . . Hacks Repelled . | . . . . . . . . . . . Allies | -11 -10 -10 -10 -8 -8 -7 -6 -5 -4 -4 -------- Run | Yrd Mat Min Sub Mat Sto Fac Fac Fac Fac DSF Total Allies 22 | . 1 . 11 . 10 . . . . . Largest Group 10 | . 1 1 10 10 10 5 . . . . Highest-Rated Group 191 | . 10 10 191 191 173 93 . . . . Highest-Rated Ally 29 | . 10 10 20 20 29 29 . . . . Total Orders 6 | . . 2 . . . . 2 2 . . EXPLORE 6 | . . 2 . . . . 2 2 . . Ally Attacks 295 | . . 1 46 125 91 32 . . . . Total Damage 4204 | . . . 706 1961 1156 381 . . . . Kills 43 | . . . 4 22 11 6 . . . . Allies Corrupted 1 | . . . . 1 . . . . . . Allies Melted . | . . . . . . . . . . . Intel | -11 -10 -10 -10 -8 -8 -7 -6 -5 -4 -4 ------- Run | Yrd Mat Min Sub Mat Sto Fac Fac Fac Fac DSF Robot Analysis Total 5 | . 2 . . 2 . 1 . . . . Derelict Logs Recovered 3 | . . 1 2 . . . . . . . Drone Launches 9 | . . 2 1 . . . 4 2 . . Drone Recoveries 2 | . . . . . . . 1 1 . . Exploration | -11 -10 -10 -10 -8 -8 -7 -6 -5 -4 -4 ------------- Run | Yrd Mat Min Sub Mat Sto Fac Fac Fac Fac DSF Turns Passed 8765 | 55 526 636 1001 1555 750 2835 854 482 18 53 Spaces Moved 5519 | 48 525 526 856 842 338 1191 621 446 35 91 Core 543 | 7 2 4 3 . . . 389 15 35 88 Treads 2515 | . . . . 779 338 1191 207 . . . Legs . | . . . . . . . . . . . Wheels 622 | 41 91 . 427 63 . . . . . . Hover 1688 | . 432 514 285 . . . 25 431 . 1 Flight 151 | . . 8 141 . . . . . . 2 Fastest Speed 40 | 50 56 40 40 110 170 158 50 50 50 40 Average Speed 127 | 84 65 96 101 165 170 180 120 77 50 49 Slowest Speed 550 | 100 550 120 120 170 170 320 232 110 50 60 Overloaded Moves . | . . . . . . . . . . . Propulsion Burnouts . | . . . . . . . . . . . Robots Hopped 1 | . . . . . . . . . . 1 Cave-ins Triggered 1 | . . . . . . . 1 . . . Exploration Rate (%) 52 | 4 87 99 58 65 49 28 35 12 . 88 Regions Visited 10 Branch Regions 3 Pre-discovered Areas 3 | . . 2 1 . . . . . . . Known Exits Taken 5 | . . . . 1 1 1 1 . 1 . Unknown Exits Taken 5 | 1 1 1 1 . . . . 1 . . Scrap Searched 7 | . . 1 6 . . . . . . . Spaces Dug 16 | . . . . 11 . 1 3 1 . . Terrain Destroyed 143 | . 26 2 . 22 2 87 3 1 . . Melee 2 | . . . . . . . 1 1 . . Projectile 14 | . . 2 . 3 2 5 2 . . . AOE 127 | . 26 . . 19 . 82 . . . . Terrain Rammed . | . . . . . . . . . . . Walls Destroyed . | . . . . . . . . . . . Machines Disabled . | . . . . . . . . . . . Actions | -11 -10 -10 -10 -8 -8 -7 -6 -5 -4 -4 --------- Run | Yrd Mat Min Sub Mat Sto Fac Fac Fac Fac DSF Total 6712 | 59 626 626 984 975 481 1609 694 529 34 95 Wait 625 | . 30 73 111 36 110 197 22 46 . . Move 5507 | 47 524 525 855 841 337 1190 620 445 34 89 Hop 1 | . . . . . . . . . . 1 Pick Up 64 | 6 9 2 1 13 6 22 4 1 . . Fast Attach 60 | 6 6 4 5 9 . 9 10 7 . 4 Attach 34 | . 2 2 1 2 2 14 10 1 . . Detach 18 | . 3 3 1 4 . 1 5 1 . . Swap 17 | . 1 . . 5 2 7 1 1 . . Drop 47 | . 9 . 4 10 6 11 5 2 . . Fire 254 | . 42 17 6 27 18 130 14 . . . Melee 33 | . . . . 5 . 2 1 25 . . Ram 1 | . . . . . . . . . . 1 Kick . | . . . . . . . . . . . Crush . | . . . . . . . . . . . Escape Stasis 2 | . . . . . . . 2 . . . Rewire . | . . . . . . . . . . . Trap 49 | . . . . 23 . 26 . . . . Miscellaneous . | . . . . . . . . . . . Route ------- -11/Scrapyard -10/Materials (discovered 3 exits: [*Mat x2] / *Min) -10/Mines (discovered 3 exits: [*Mat x2] / [*Sub]) -10/Subcaves (discovered 2 exits: *Mat x2) -8/Materials (discovered 3 exits: *Fac / *Sto x2) -8/Storage (discovered 2 exits: *Fac / Rec) -7/Factory (discovered 4 exits: *Fac x4) -6/Factory -5/Factory -4/Factory -4/DSF (discovered 1 exit: [*Gar]) History --------- Turn | Location | Event 10 | -11/Scrapyard | Discovered new exit (range 16) 56 | -11/Scrapyard | Entered Materials 315 | -10/Materials | Build established: Mutant 375 | -10/Materials | Discovered new exit (range 18) 423 | -10/Materials | Central database locked down 514 | -10/Materials | Lost 3 parts (1p1n1w) 527 | -10/Materials | Discovered new exit (range 13) 562 | -10/Materials | Discovered new exit (range 17) 582 | -10/Materials | Entered Mines 582 | -10/Mines | Accompanied by 1 ally 611 | -10/Mines | Core integrity fell below 50% 658 | -10/Mines | Lost 5 parts (1p2n2w) 688 | -10/Mines | Learned location of Storage (-8) 756 | -10/Mines | Discovered new exit (range 10) 766 | -10/Mines | Found the Drone Emporium 771 | -10/Mines | Found Prototype Device 771 | -10/Mines | Identified Bomb Drone Bay 790 | -10/Mines | Discovered new exit (range 23) 994 | -10/Mines | YI-UF0 nonchalantly dropped a Grenade Launcher on the ground 1216 | -10/Mines | Discovered new exit (range 3) 1218 | -10/Mines | Entered Subcaves 1218 | -10/Subcaves | Accompanied by 1 ally 1276 | -10/Subcaves | Learned location of Zion (-7) 1276 | -10/Subcaves | Met a Zionite searching for "candidates" 1386 | -10/Subcaves | A swath of the cavern ceiling suddenly collapsed 1527 | -10/Subcaves | Visited triangular shrine 1537 | -10/Subcaves | Found Prototype Device 1537 | -10/Subcaves | Identified V3-11A's Pendant 1542 | -10/Subcaves | Befriended Subdweller 1559 | -10/Subcaves | Disturbed a concealed Subdweller 1561 | -10/Subcaves | Core integrity fell below 20% 1562 | -10/Subcaves | Befriended Subdweller 1772 | -10/Subcaves | Befriended Subdweller 1837 | -10/Subcaves | Befriended Subdweller 1842 | -10/Subcaves | Befriended Subdweller 1842 | -10/Subcaves | Befriended Subdweller 1847 | -10/Subcaves | Befriended Subdweller 1848 | -10/Subcaves | Discovered new exit (range 9) 1918 | -10/Subcaves | A Subdweller sparked back to life 1918 | -10/Subcaves | A Subdweller sparked back to life 1922 | -10/Subcaves | Befriended Subdweller 1922 | -10/Subcaves | Befriended Subdweller 1922 | -10/Subcaves | Befriended Subdweller 1927 | -10/Subcaves | Befriended Subdweller 1948 | -10/Subcaves | Shifting Twisted Machinery released Battle Cannon 1950 | -10/Subcaves | Shifting Twisted Machinery released Sub. Machine Gun 2106 | -10/Subcaves | Build established: Scavenger-Mutant 2158 | -10/Subcaves | Learned Materials emergency access door positions 2196 | -10/Subcaves | Discovered new exit (range 9) 2219 | -10/Subcaves | Entered Materials 2219 | -8/Materials | Accompanied by 10 allies 2219 | -8/Materials | Evolved 4 slots: Propulsion x2, Utility x2 2220 | -8/Materials | Identified exit to Storage 2738 | -8/Materials | Build established: Mutant 3031 | -8/Materials | Discovered new exit (range 5) 3246 | -8/Materials | Discovered exit to Storage (range 16) 3774 | -8/Materials | Entered Storage 3826 | -8/Storage | Assisted by bots powering up and referring to "LRC-V3" 3872 | -8/Storage | Identified exit to Recycling 4116 | -8/Storage | Build established: Commander-Mutant 4192 | -8/Storage | Garrison activated, responded to threat 4260 | -8/Storage | Lost 4 allies 4291 | -8/Storage | Discovered new exit (range 16) 4373 | -8/Storage | Repaired Arm. Treads 4435 | -8/Storage | Repaired Adv. EMP Blaster 4478 | -8/Storage | Identified exit to Factory 4524 | -8/Storage | Entered Factory 4524 | -7/Factory | Accompanied by 5 allies 4524 | -7/Factory | Evolved 2 slots: Utility x2 4845 | -7/Factory | Lost 3 allies 4954 | -7/Factory | Repaired Arm. Treads 4993 | -7/Factory | Repaired Arm. Treads 5109 | -7/Factory | Build established: Mutant 5212 | -7/Factory | Destroyed 8 combat bots 5324 | -7/Factory | First assault squad dispatched 5616 | -7/Factory | Lost 3 parts (1n1u1w) 5985 | -7/Factory | Repaired Adv. Treads 6307 | -7/Factory | Core integrity fell below 50% 6402 | -7/Factory | Build established: Scavenger-Mutant 6649 | -7/Factory | Identified exit to Factory 6697 | -7/Factory | Lost 3 parts (1p1n1u) 6765 | -7/Factory | Lost 3 parts (1p2n) 7098 | -7/Factory | Build established: Mutant 7359 | -7/Factory | Entered another Factory area 7359 | -6/Factory | Evolved 2 slots: Power x1, Utility x1 7603 | -6/Factory | Identified exit to DSF 7741 | -6/Factory | Spotted B-75 Beast 7756 | -6/Factory | Crushed by falling debris 7766 | -6/Factory | Released all parts (12) 7787 | -6/Factory | Lost 5 parts (1n3u1w) 7794 | -6/Factory | Core integrity fell below 50% 8080 | -6/Factory | Discovered new exit (range 48) 8213 | -6/Factory | Identified exit to Factory 8213 | -6/Factory | Entered another Factory area 8213 | -5/Factory | Evolved 2 slots: Propulsion x1, Weapon x1 8295 | -5/Factory | Build established: Gladiator 8601 | -5/Factory | Lost 3 parts (2u1w) 8645 | -5/Factory | Discovered new exit (range 14) 8695 | -5/Factory | Entered another Factory area 8695 | -4/Factory | Evolved 2 slots: Utility x2 8696 | -4/Factory | Identified exit to DSF 8713 | -4/Factory | Entered DSF 8720 | -4/DSF | Lost 8 parts (1p1n5u1w) 8728 | -4/DSF | Additional patrols routed to DSF 8750 | -4/DSF | Core integrity fell below 50% 8756 | -4/DSF | Core integrity fell below 20% 8762 | -4/DSF | Discovered new exit (range 15) 8766 | -4/DSF | Destroyed by C-35 Carver with Carbide Saw Last Messages --------------- additional patrols. 08738_ X-77 Beamer springs to life. 08738_ Acquired Point Defense Array. 08743_ Triggered Alarm Trap. 08743_ An alarm sounds. 08743_ Point Defense Array destroyed. 08745_ Acquired Antigrav System. 08747_ Antigrav System severed. 08748_ Slammed into C-35 Carver. 08751_ Knocked back. 08751_ Acquired Q-thruster. 08753_ Penetrated by Slug. 08753_ Q-thruster destroyed. 08753_ Knocked back. 08753_ C-35 Carver system corrupted by crushing effect. 08754_ C-35 Carver system terminally corrupted. 08755_ Knocked back. 08762_ EXIT=FOUND 08763_ Knocked back. Map ----- +----------------------------------------------------+ | | | | | | | | | | | | | | | ???????????????????????????????????? | | ???????????????????????????????????? | | ???????????????????????????????????? | | ???????????????????????????????????? | | ???????????????????????????????????? | | ???????????????????????????????????? | | #####??########????????#"#?????????? | | # ###]]!!! #???????#"""?????????? | | ]]!!! #????????""""????????? | | ? <"????????? | | ? "????????? | | !! ## ### #???? "????????? | | ! # ### #??????????# #????????? | | #######!! !!#??????### #????????? | | ????????! !!#???????]] ????????? | | ????????! !!#????????] ????????? | | ??????### #?#??????### ##???????? | | ??????#== !????????#]] ]#???????? | | ??????#== !????????#]] @]#???????? | | ???????== !????????#]] c]#???????? | | #####?#?# #?########## ###??????? | | **#!!!### ###]]]# ## c//#??????? | | **#!!!## ##]]]# ## //#??????? | | #??????? | | % #??????? | | H c #??????? | | !!#]]]##% ##!!!# ## #??????? | | !!#?]]### ###!!!# ## #??????? | | ###???### #################??????? | | ??????#!! %%==#????????????????????? | | ??????#!! ==#????????????????????? | | ??????#!! %= #????????????????????? | | ??????### ###????????????????????? | | ??????#== ]]#????????????????????? | | ??????#== ]]#????????????????????? | | #######== ]]#????????????????????? | | !!#!!!### ###????????????????????? | | !!#!!!### ###????????????????????? | | #????????????????????? | | #????????????????????? | | !# # !!!==#????????????????????? | | ####### !!!==#????????????????????? | | ??????#########????????????????????? | +----------------------------------------------------+ Best States ------------- Heat Dissipation 64 Coolant Potential 50 Energy Generation 31 Energy Capacity 490 Matter Stores 300 Matter Capacity 300 Sight Range 18 Terrain Scan Density 10 Power Amplification 20 Armor Coverage 225 Resistance: TH 25 Resistance: EX 25 Resistance: EM 25 Propulsion Shielding 66 Point Defense Rating 160 Evasion (%) 62 Melee Accuracy 8 Recoil Reduction 4 Offensive Hacking 10 Defensive Hacking 10 Item Schematics ----------------- Imp. Assault Rifle | -7/Factory | Scanalyzed Robot Schematics ------------------ G-47 Trooper | -8/Storage | Hacked Fabricated ------------ Nothing Alien Tech Used ----------------- None Achievements -------------- None Challenges ------------ None Game ------ Seed ElectronGravitonSplitter Manual? 0 Play Time 02:03:54 Cumulative 120.3 hours Start 2024.04.13 @ 12:03:22 End 2024.04.16 @ 23:37:42 Sessions 7 Manual Loads 0 Difficulty Rogue Special Mode None Game No. 95 Rogue 95 Adventurer 0 Explorer 0 Win Type - Total 0 Types 0/0/0/0/0/0/0/0/0 Lore% 52 Gallery% 53 Achievement% 41 Wizard Run 0 Options --------- Layout 1 ASCII 0 Keyboard 1 Movement Numpad Keybinds 0 Fullscreen 1 Font 24/Smallcaps Map View 50x35 Zoom Use 0% Tactical HUD 1 Map Filters NONE Filters NONE Steam 1 RUN: b4ee94de-49f8-4f9f-9818-6db3866abc58